fUST/lending_fUST_20260417
["ID","MTS","AMOUNT","RATE_DAILY","PERIOD"]
[420636715,1776390643946,-500.0,8.219e-05,2]
[420636716,1776390643955,-332.44677698,8.219e-05,2]
[420636717,1776390643966,-500.0,8.219e-05,2]
[420636718,1776390643975,-500.0,8.219e-05,2]
[420636719,1776390643985,-502.46196939,8.219e-05,2]
[420636720,1776390643995,-500.0,8.219e-05,2]
[420636721,1776390644005,-581.3,8.219e-05,2]
[420636722,1776390644016,-500.0,8.219e-05,2]
[420636723,1776390644025,-5628.16,8.219e-05,2]
[420636725,1776390644035,-500.0,8.219e-05,2]
[420636726,1776390644044,-500.0,8.219e-05,2]
[420636727,1776390644055,-971.71,8.219e-05,2]
[420636728,1776390644064,-500.0,8.219e-05,2]
[420636729,1776390644074,-2146.68,8.219e-05,2]
[420636730,1776390644085,-500.0,8.219e-05,2]
[420636731,1776390644096,-1680.29,8.219e-05,2]
[420636732,1776390644105,-500.0,8.219e-05,2]
[420636733,1776390644115,-3548.16,8.219e-05,2]
[420636734,1776390644124,-500.0,8.219e-05,2]
[420636735,1776390644134,-1745.52,8.219e-05,2]
[420636736,1776390644143,-661.78,8.219e-05,2]
[420636737,1776390644153,-1347.77,8.219e-05,2]
[420636738,1776390644162,-959.09,8.219e-05,2]
[420636739,1776390644173,-4373.94,8.219e-05,2]
[420636740,1776390644182,-2096.35,8.219e-05,2]
[420636741,1776390644193,-500.0,8.219e-05,2]
[420636742,1776390644203,-1372.19,8.219e-05,2]
[420636743,1776390644212,-2896.24,8.219e-05,2]
[420636744,1776390644222,-500.0,8.219e-05,2]
[420636745,1776390644232,-500.0,8.219e-05,2]
[420636746,1776390644242,-500.0,8.219e-05,2]
[420636747,1776390644251,-757.41,8.219e-05,2]
[420636748,1776390644261,-500.0,8.219e-05,2]
[420636749,1776390644270,-1835.48,8.219e-05,2]
[420636750,1776390644279,-1844.92,8.219e-05,2]
[420636751,1776390644288,-172.82514921,8.219e-05,2]
[420636752,1776390644298,-118.6005812,8.219e-05,2]
[420636753,1776390644310,-381.3994188,8.219e-05,2]
[420636754,1776390644320,-1982.91,8.219e-05,2]
[420636755,1776390644330,-500.0,8.219e-05,2]
[420636756,1776390644340,-3691.32,8.219e-05,2]
[420636757,1776390644349,-1481.44,8.219e-05,2]
[420636758,1776390644359,-2051.54,8.219e-05,2]
[420636759,1776390644370,-500.0,8.219e-05,2]
[420636760,1776390644379,-508.1,8.219e-05,2]
[420636761,1776390644389,-525.33,8.219e-05,2]
[420636762,1776390644398,-4251.82,8.219e-05,2]
[420636763,1776390644408,-500.0,8.219e-05,2]
[420636764,1776390644418,-19585.1,8.219e-05,2]
[420636765,1776390644427,-500.0,8.219e-05,2]
[420636766,1776390644436,-3603.62,8.219e-05,2]
[420636767,1776390644446,-5963.56,8.219e-05,2]
[420636768,1776390644456,-500.0,8.219e-05,2]
[420636769,1776390644466,-1022.01,8.219e-05,2]
[420636770,1776390644476,-500.0,8.219e-05,2]
[420636771,1776390644487,-840.06,8.219e-05,2]
[420636772,1776390644497,-500.0,8.219e-05,2]
[420636773,1776390644506,-11180.3,8.219e-05,2]
[420636774,1776390644515,-500.0,8.219e-05,2]
[420636775,1776390644525,-3953.9,8.219e-05,2]
[420636776,1776390644534,-2732.02,8.219e-05,2]
[420636777,1776390644543,-5112.0,8.219e-05,2]
[420636778,1776390644553,-500.0,8.219e-05,2]
[420636779,1776390644562,-500.0,8.219e-05,2]
[420636780,1776390644572,-500.0,8.219e-05,2]
[420636781,1776390644581,-588.1,8.219e-05,2]
[420636782,1776390644590,-5282.88,8.219e-05,2]
[420636783,1776390644600,-540.95,8.219e-05,2]
[420636784,1776390644609,-1392.75,8.219e-05,2]
[420636785,1776390644618,-2567.59,8.219e-05,2]
[420636786,1776390644627,-948.93,8.219e-05,2]
[420636787,1776390644637,-2303.75,8.219e-05,2]
[420636788,1776390644646,-500.0,8.219e-05,2]
[420636789,1776390644656,-500.0,8.219e-05,2]
[420636790,1776390644665,-500.0,8.219e-05,2]
[420636791,1776390644674,-1598.09,8.219e-05,2]
[420636792,1776390644683,-500.0,8.219e-05,2]
[420636793,1776390644692,-500.0,8.219e-05,2]
[420636794,1776390644702,-500.0,8.219e-05,2]
[420636795,1776390644711,-5604.73,8.219e-05,2]
[420636796,1776390644721,-500.0,8.219e-05,2]
[420636797,1776390644730,-500.0,8.219e-05,2]
[420636798,1776390644739,-687.09031919,8.221e-05,2]
[420636799,1776390644749,-1000.0,8.221e-05,2]
[420636800,1776390644758,-1000.0,8.221e-05,2]
[420636801,1776390644767,-1000.0,8.221e-05,2]
[420636802,1776390644777,-1000.0,8.221e-05,2]
[420636803,1776390644786,-337.44822096,8.237e-05,2]
[420636804,1776390644795,-2150.738,8.302e-05,2]
[420636805,1776390644804,-2209.0,8.304e-05,2]
[420636806,1776390644813,-1400.333,8.304e-05,2]
[420636807,1776390644822,-646.652,8.304e-05,2]
[420636808,1776390644831,-325.2809594,8.366e-05,2]
[420636809,1776390644841,-155.0,8.493e-05,2]
[420636810,1776390644850,-1214.6536,8.493e-05,2]
[420636811,1776390644859,-513.79721885,8.493e-05,2]
[420636812,1776390644870,-500.0,8.493e-05,2]
[420636813,1776390644879,-500.0,8.493e-05,2]
[420636814,1776390644889,-500.0,8.493e-05,2]
[420636815,1776390644898,-477.59878792,8.493e-05,2]
[420636816,1776390644908,-567.93,8.493e-05,2]
[420636817,1776390644917,-500.0,8.493e-05,2]
[420636818,1776390644926,-1013.06,8.493e-05,2]
[420636819,1776390644935,-500.0,8.493e-05,2]
[420636820,1776390644944,-500.0,8.493e-05,2]
[420636821,1776390644953,-617.42,8.493e-05,2]
[420636822,1776390644963,-1195.31,8.493e-05,2]
[420636823,1776390644972,-500.0,8.493e-05,2]
[420636824,1776390644981,-816.85,8.493e-05,2]
[420636825,1776390644991,-500.0,8.493e-05,2]
[420636826,1776390645000,-500.0,8.493e-05,2]
[420636827,1776390645009,-500.0,8.493e-05,2]
[420636828,1776390645019,-500.0,8.493e-05,2]
[420636829,1776390645028,-500.0,8.493e-05,2]
[420636830,1776390645038,-2097.54,8.493e-05,2]
[420636831,1776390645047,-704.81,8.493e-05,2]
[420636832,1776390645057,-504.65076632,8.493e-05,2]
[420636833,1776390645066,-411.65419204,8.493e-05,2]
[420636834,1776390645076,-1523.29,8.493e-05,2]
[420636835,1776390645085,-500.0,8.493e-05,2]
[420636836,1776390645094,-685.84,8.493e-05,2]
[420636837,1776390645104,-500.0,8.493e-05,2]
[420636838,1776390645114,-500.0,8.493e-05,2]
[420636839,1776390645125,-500.0,8.493e-05,2]
[420636840,1776390645135,-500.0,8.493e-05,2]
[420636841,1776390645145,-1673.53,8.493e-05,2]
[420636842,1776390645154,-500.0,8.493e-05,2]
[420636843,1776390645164,-1507.8,8.493e-05,2]
[420636844,1776390645173,-500.0,8.493e-05,2]
[420636845,1776390645182,-1001.61,8.493e-05,2]
[420636846,1776390645192,-2428.47,8.493e-05,2]
[420636847,1776390645203,-500.0,8.493e-05,2]
[420636848,1776390645214,-500.0,8.493e-05,2]
[420636849,1776390645223,-500.0,8.493e-05,2]
[420636850,1776390645233,-190.00876217,8.493e-05,2]
[420636851,1776390645242,-643.5566046,8.493e-05,2]
[420636852,1776390645252,-581.3,8.493e-05,2]
[420636853,1776390645262,-500.0,8.493e-05,2]
[420636854,1776390645272,-500.0,8.493e-05,2]
[420636855,1776390645282,-5628.16,8.493e-05,2]
[420636856,1776390645291,-500.0,8.493e-05,2]
[420636857,1776390645301,-971.71,8.493e-05,2]
[420636858,1776390645311,-500.0,8.493e-05,2]
[420636859,1776390645322,-1723.69836021,8.493e-05,2]
[420636860,1776390645336,-422.98163979,8.493e-05,2]
[420636861,1776390645345,-70.66065401,8.493e-05,2]
[420636862,1776390645356,-274.6353357,8.493e-05,2]
[420636863,1776390645367,-154.70401029,8.493e-05,2]
[420636864,1776390645376,-1680.29,8.493e-05,2]
[420636865,1776390645386,-500.0,8.493e-05,2]
[420636866,1776390645396,-3548.16,8.493e-05,2]
[420636867,1776390645405,-396.06006935,8.493e-05,2]
[420636868,1776390645418,-103.93993065,8.493e-05,2]
[420636869,1776390645428,-1745.52,8.493e-05,2]
[420636870,1776390645438,-661.78,8.493e-05,2]
[420636871,1776390645447,-1347.77,8.493e-05,2]
[420636872,1776390645456,-959.09,8.493e-05,2]
[420636873,1776390645466,-4373.94,8.493e-05,2]
[420636874,1776390645475,-2096.35,8.493e-05,2]
[420636875,1776390645484,-500.0,8.493e-05,2]
[420636876,1776390645493,-1372.19,8.493e-05,2]
[420636877,1776390645503,-2896.24,8.493e-05,2]
[420636878,1776390645513,-500.0,8.493e-05,2]
[420636879,1776390645522,-500.0,8.493e-05,2]
[420636880,1776390645533,-500.0,8.493e-05,2]
[420636881,1776390645542,-757.41,8.493e-05,2]
[420636882,1776390645552,-500.0,8.493e-05,2]
[420636883,1776390645561,-1835.48,8.493e-05,2]
[420636884,1776390645571,-1844.92,8.493e-05,2]
[420636885,1776390645580,-500.0,8.493e-05,2]
[420636886,1776390645590,-1982.91,8.493e-05,2]
[420636887,1776390645600,-540.88124423,8.493e-05,2]
[420636888,1776390645609,-3691.32,8.493e-05,2]
[420636889,1776390645618,-1481.44,8.493e-05,2]
[420636890,1776390645628,-2051.54,8.493e-05,2]
[420636891,1776390645637,-500.0,8.493e-05,2]
[420636892,1776390645647,-508.1,8.493e-05,2]
[420636893,1776390645657,-525.33,8.493e-05,2]
[420636894,1776390645667,-4251.82,8.493e-05,2]
[420636895,1776390645676,-5178.60087857,8.493e-05,2]
[420636896,1776390645687,-3795.1,8.493e-05,2]
[420636897,1776390645698,-1283.82286199,8.493e-05,2]
[420636898,1776390645709,-1316.27915126,8.493e-05,2]
[420636904,1776390646870,-7832.12040504,8.493e-05,2]
[420636905,1776390646977,-179.17670314,8.493e-05,2]
[420636906,1776390646987,-500.0,8.493e-05,2]
[420636907,1776390646996,-2944.89548851,8.493e-05,2]
[420636914,1776391244529,5000.0,0.00024,120]
[420636915,1776391327120,10000.0,0.00024658,120]
[420636916,1776391366099,2000.0,0.00024657,120]
[420636932,1776391788678,713.347465,0.00024657,120]
[420636957,1776391838291,-289.784921,6.484e-05,2]
[420636958,1776391838301,-512.0,6.484e-05,2]
[420636959,1776391838310,-276.96715507,6.575e-05,2]
[420636960,1776391838320,-1743.47,6.575e-05,2]
[420636961,1776391838330,-4506.65041789,6.628e-05,2]
[420636962,1776391838339,-300.0,6.723e-05,2]
[420636963,1776391838348,-300.0,6.723e-05,2]
[420636964,1776391838358,-300.0,6.723e-05,2]
[420636965,1776391838368,-300.0,6.723e-05,2]
[420636966,1776391838377,-1200.0,6.724e-05,2]
[420636967,1776391838386,-300.0,6.725e-05,2]
[420636968,1776391838395,-8692.04258068,6.728e-05,2]
[420636969,1776391838405,-9052.72041918,6.734e-05,2]
[420636970,1776391838414,-289.784921,6.757e-05,2]
[420636971,1776391838423,-289.784921,7.03e-05,2]
[420636972,1776391838432,-289.784921,7.303e-05,2]
[420636973,1776391838442,-164.0,7.395e-05,2]
[420636974,1776391838452,-289.784921,7.576e-05,2]
[420636975,1776391838462,-9434.8288919,7.601e-05,2]
[420636976,1776391838471,-289.784921,7.849e-05,2]
[420636977,1776391838480,-160.0,7.901e-05,2]
[420636978,1776391838490,-30413.6820206,8.119e-05,2]
[420636979,1776391838499,-2150.738,8.202e-05,2]
[420636980,1776391838508,-500.0,8.219e-05,2]
[420636981,1776391838517,-746.53,8.219e-05,2]
[420636982,1776391838526,-500.0,8.219e-05,2]
[420636983,1776391838536,-748.16,8.219e-05,2]
[420636984,1776391838545,-500.0,8.219e-05,2]
[420636985,1776391838555,-500.0,8.219e-05,2]
[420636986,1776391838564,-1248.3629,8.219e-05,2]
[420636987,1776391838573,-713.5,8.219e-05,2]
[420636988,1776391838582,-500.0,8.219e-05,2]
[420636989,1776391838592,-500.0,8.219e-05,2]
[420636990,1776391838601,-460.16077628,8.219e-05,2]
[420636991,1776391838613,-39.83922372,8.219e-05,2]
[420636992,1776391838622,-500.0,8.219e-05,2]
[420636993,1776391838631,-281.15312828,8.219e-05,2]
[420636994,1776391838642,-218.84687172,8.219e-05,2]
[420636995,1776391838652,-500.0,8.219e-05,2]
[420636996,1776391838661,-500.0,8.219e-05,2]
[420636997,1776391838670,-500.0,8.219e-05,2]
[420636998,1776391838679,-628.68,8.219e-05,2]
[420636999,1776391838689,-482.40508652,8.219e-05,2]
[420637000,1776391838699,-500.0,8.219e-05,2]
[420637001,1776391838709,-516.65917592,8.219e-05,2]
[420637002,1776391838720,-1534.07,8.219e-05,2]
[420637003,1776391838729,-500.0,8.219e-05,2]
[420637004,1776391838740,-1922.75,8.219e-05,2]
[420637005,1776391838751,-1396.35,8.219e-05,2]
[420637006,1776391838761,-308.1750416,8.219e-05,2]
[420637007,1776391838770,-500.0,8.219e-05,2]
[420637008,1776391838779,-500.0,8.219e-05,2]
[420637009,1776391838789,-1382.15,8.219e-05,2]
[420637010,1776391838798,-500.0,8.219e-05,2]
[420637011,1776391838807,-251.35790255,8.219e-05,2]
[420637012,1776391838816,-918.14,8.219e-05,2]
[420637013,1776391838826,-500.0,8.219e-05,2]
[420637014,1776391838836,-2226.09,8.219e-05,2]
[420637015,1776391838846,-500.0,8.219e-05,2]
[420637016,1776391838856,-361.50971375,8.219e-05,2]
[420637017,1776391838865,-500.0,8.219e-05,2]
[420637018,1776391838874,-890.77,8.219e-05,2]
[420637019,1776391838884,-5159.15,8.219e-05,2]
[420637020,1776391838894,-500.0,8.219e-05,2]
[420637021,1776391838904,-1955.29,8.219e-05,2]
[420637022,1776391838914,-1531.51,8.219e-05,2]
[420637023,1776391838923,-500.0,8.219e-05,2]
[420637024,1776391838934,-551.78288635,8.219e-05,2]
[420637028,1776391840461,-603.519,8.219e-05,2]
[420637029,1776391840518,-384.95811365,8.219e-05,2]
[420637030,1776391840528,-342.65439519,8.219e-05,2]
[420637051,1776391843214,-767.48560481,8.219e-05,2]
[420637052,1776391843224,-500.0,8.219e-05,2]
[420637053,1776391843233,-1522.81347697,8.219e-05,2]
[420637054,1776391843245,-660.112334,8.219e-05,2]
[420637055,1776391843257,-1082.03418903,8.219e-05,2]
[420637056,1776391843267,-151.8960752,8.219e-05,2]
[420637062,1776391846168,-348.1039248,8.219e-05,2]
[420637063,1776391846178,-762.5630396,8.219e-05,2]
[420637064,1776391846223,-837.4969604,8.219e-05,2]
[420637065,1776391846233,-606.64,8.219e-05,2]
[420637066,1776391846243,-500.0,8.219e-05,2]
[420637067,1776391846253,-4009.45,8.219e-05,2]
[420637068,1776391846263,-879.16,8.219e-05,2]
[420637069,1776391846273,-1235.46,8.219e-05,2]
[420637070,1776391846283,-500.0,8.219e-05,2]
[420637071,1776391846294,-1921.65,8.219e-05,2]
[420637072,1776391846303,-4157.99,8.219e-05,2]
[420637073,1776391846313,-500.0,8.219e-05,2]
[420637074,1776391846322,-2654.88,8.219e-05,2]
[420637075,1776391846332,-694.29,8.219e-05,2]
[420637076,1776391846341,-500.0,8.219e-05,2]
[420637077,1776391846351,-500.0,8.219e-05,2]
[420637078,1776391846360,-500.0,8.219e-05,2]
[420637079,1776391846369,-500.0,8.219e-05,2]
[420637080,1776391846378,-1682.52,8.219e-05,2]
[420637081,1776391846388,-500.0,8.219e-05,2]
[420637082,1776391846397,-1817.67,8.219e-05,2]
[420637083,1776391846407,-500.0,8.219e-05,2]
[420637084,1776391846416,-500.0,8.219e-05,2]
[420637085,1776391846425,-500.0,8.219e-05,2]
[420637086,1776391846435,-1357.99,8.219e-05,2]
[420637087,1776391846444,-2067.09,8.219e-05,2]
[420637088,1776391846454,-500.0,8.219e-05,2]
[420637089,1776391846463,-3897.5,8.219e-05,2]
[420637090,1776391846473,-3383.71,8.219e-05,2]
[420637091,1776391846482,-3330.76,8.219e-05,2]
[420637092,1776391846492,-500.0,8.219e-05,2]
[420637093,1776391846501,-1691.18,8.219e-05,2]
[420637094,1776391846511,-529.78,8.219e-05,2]
[420637095,1776391846521,-1620.7,8.219e-05,2]
[420637096,1776391846531,-500.0,8.219e-05,2]
[420637097,1776391846540,-2618.19,8.219e-05,2]
[420637098,1776391846550,-151.43680208,8.219e-05,2]
[420637099,1776391846562,-18419.97,8.219e-05,2]
[420637100,1776391846571,-5062.76,8.219e-05,2]
[420637101,1776391846585,-4048.18,8.219e-05,2]
[420637102,1776391846594,-1309.1,8.219e-05,2]
[420637103,1776391846604,-518.41,8.219e-05,2]
[420637104,1776391846613,-3789.15,8.219e-05,2]
[420637105,1776391846622,-500.0,8.219e-05,2]
[420637106,1776391846632,-10714.45,8.219e-05,2]
[420637107,1776391846641,-500.0,8.219e-05,2]
[420637108,1776391846651,-2207.76,8.219e-05,2]
[420637109,1776391846660,-500.0,8.219e-05,2]
[420637110,1776391846670,-817.87,8.219e-05,2]
[420637111,1776391846679,-500.0,8.219e-05,2]
[420637112,1776391846689,-1001.04,8.219e-05,2]
[420637113,1776391846699,-2460.61,8.219e-05,2]
[420637114,1776391846709,-979.43,8.219e-05,2]
[420637115,1776391846719,-500.0,8.219e-05,2]
[420637116,1776391846731,-4899.0,8.219e-05,2]
[420637117,1776391846740,-500.0,8.219e-05,2]
[420637118,1776391846750,-500.0,8.219e-05,2]
[420637119,1776391846760,-909.39,8.219e-05,2]
[420637120,1776391846769,-532.86,8.219e-05,2]
[420637121,1776391846779,-500.0,8.219e-05,2]
[420637122,1776391846788,-500.0,8.219e-05,2]
[420637123,1776391846798,-500.0,8.219e-05,2]
[420637124,1776391846808,-232.40770094,8.219e-05,2]
[420637125,1776391846818,-500.0,8.219e-05,2]
[420637126,1776391846827,-5371.2,8.219e-05,2]
[420637127,1776391846837,-218.09322225,8.219e-05,2]
[420637128,1776391846847,-4944.18,8.219e-05,2]
[420637129,1776391846857,-1476.08,8.219e-05,2]
[420637130,1776391846866,-330.43907311,8.219e-05,2]
[420637131,1776391846876,-683.193,8.302e-05,2]
[420637132,1776391846886,-186.65802493,8.302e-05,2]
[420637133,1776391846895,-151.0,8.33e-05,2]
[420637134,1776391846905,-2209.0,8.332e-05,2]
[420637135,1776391846915,-645.0,8.332e-05,2]
[420637136,1776391846925,-739.0,8.332e-05,2]
[420637137,1776391846934,-184.0,8.332e-05,2]
[420637138,1776391846944,-443.895,8.332e-05,2]
[420637139,1776391846954,-173.8854134,8.362e-05,2]
[420637140,1776391846964,-600.0,8.381e-05,2]
[420637141,1776391846973,-10177.61520325,8.468e-05,2]
[420637142,1776391846982,-702.9618,8.493e-05,2]
[420637143,1776391846992,-155.68603156,8.493e-05,2]
[420637144,1776391847004,-500.0,8.493e-05,2]
[420637145,1776391847013,-746.53,8.493e-05,2]
[420637146,1776391847023,-500.0,8.493e-05,2]
[420637147,1776391847032,-748.16,8.493e-05,2]
[420637148,1776391847043,-500.0,8.493e-05,2]
[420637149,1776391847052,-228.06912128,8.493e-05,2]
[420637150,1776391847062,-545.4011,8.493e-05,2]
[420637151,1776391847072,-713.5,8.493e-05,2]
[420637152,1776391847081,-500.0,8.493e-05,2]
[420637153,1776391847092,-466.4330417,8.493e-05,2]
[420637163,1776392091667,10000.0,0.00024,120]
[420637164,1776392100756,10000.0,0.00024,120]
[420637165,1776392109566,10000.0,0.00024,120]
[420637166,1776392120279,10000.0,0.00024,120]
[420637167,1776392145697,50000.0,0.00024,120]
[420637168,1776392166488,49000.0,0.00024,120]
[420637169,1776392185607,454.0,0.00024,120]
[420637176,1776392305461,657.63327488,0.0001544,120]
[420637193,1776392445133,169.24098736,0.0001499,120]
[420637194,1776392456364,500.0,0.00024657,120]
[420637195,1776392477071,500.0,0.00024657,120]
[420637197,1776392489239,500.0,0.00024657,120]
[420637198,1776392502206,500.0,0.00024657,120]
[420637206,1776392512897,500.0,0.00024657,120]
[420637213,1776392523740,500.0,0.00024657,120]
[420637239,1776392584254,150.03,0.00024657,120]
[420637251,1776392632855,517.38,0.00024657,120]
[420637259,1776392974062,181.1,0.00024657,120]
[420637260,1776393022415,604756.15833105,0.0002465,120]
[420637261,1776393026132,-1930.27818127,3.591e-05,2]
[420637292,1776393032245,-977.97249465,3.591e-05,2]
[420637294,1776393032255,-274.898968,3.655e-05,2]
[420637296,1776393032265,-200.8718138,3.655e-05,2]
[420637298,1776393032274,-165.066749,3.701e-05,2]
[420637300,1776393032284,-208.31626066,4.318e-05,2]
[420637302,1776393032294,-301.30772071,4.318e-05,2]
[420637304,1776393032304,-165.066749,4.934e-05,2]
[420637306,1776393032313,-324.38078224,5.655e-05,2]
[420637308,1776393032323,-165.066749,6.168e-05,2]
[420637310,1776393032333,-1394.77,6.575e-05,2]
[420637312,1776393032342,-165.066749,7.401e-05,2]
[420637314,1776393032352,-200.0,7.5e-05,2]
[420637316,1776393032362,-373.86259649,7.655e-05,2]
[420637318,1776393032372,-300.0,7.664e-05,2]
[420637320,1776393032382,-1200.0,7.664e-05,2]
[420637322,1776393032392,-672.57058284,7.665e-05,2]
[420637324,1776393032401,-1214.13007647,7.665e-05,2]
[420637405,1776393038580,-1473.46197257,7.665e-05,2]
[420637406,1776393038591,-160.0,7.873e-05,2]
[420637407,1776393038601,-391.46592093,7.9e-05,2]
[420637408,1776393038611,-2150.738,8.067e-05,2]
[420637409,1776393038621,-647.07767292,8.068e-05,2]
[420637410,1776393038630,-2588.31069169,8.068e-05,2]
[420637411,1776393038640,-5817.87535724,8.068e-05,2]
[420637412,1776393038650,-20000.0,8.119e-05,2]
[420637413,1776393038659,-506.95381436,8.193e-05,2]
[420637414,1776393038669,-500.28644388,8.193e-05,2]
[420637415,1776393038678,-500.0,8.193e-05,2]
[420637416,1776393038688,-500.69042826,8.193e-05,2]
[420637417,1776393038698,-500.68736657,8.193e-05,2]
[420637418,1776393038708,-500.26785005,8.193e-05,2]
[420637419,1776393038718,-500.0,8.193e-05,2]
[420637420,1776393038727,-500.0,8.193e-05,2]
[420637421,1776393038737,-626.33332093,8.193e-05,2]
[420637422,1776393038747,-505.91701787,8.214e-05,2]
[420637423,1776393038756,-305.81453474,8.218e-05,2]
[420637424,1776393038766,-500.0,8.218e-05,2]
[420637425,1776393038776,-500.0,8.218e-05,2]
[420637426,1776393038786,-413.12500684,8.218e-05,2]
[420637427,1776393038796,-500.0,8.218e-05,2]
[420637428,1776393038805,-500.0,8.218e-05,2]
[420637429,1776393038815,-500.0,8.218e-05,2]
[420637430,1776393038827,-500.0,8.218e-05,2]
[420637431,1776393038836,-500.0,8.218e-05,2]
[420637432,1776393038847,-589.34136728,8.218e-05,2]
[420637433,1776393038859,-500.0,8.218e-05,2]
[420637434,1776393038869,-500.0,8.218e-05,2]
[420637435,1776393038880,-157.67418605,8.219e-05,2]
[420637436,1776393038892,-1176.6359,8.219e-05,2]
[420637437,1776393038904,-500.0,8.219e-05,2]
[420637438,1776393038913,-500.0,8.219e-05,2]
[420637439,1776393038924,-500.0,8.219e-05,2]
[420637440,1776393038935,-500.0,8.219e-05,2]
[420637441,1776393038945,-649.72613422,8.219e-05,2]
[420637442,1776393038954,-500.0,8.219e-05,2]
[420637443,1776393038965,-500.0,8.219e-05,2]
[420637444,1776393038975,-500.49094729,8.219e-05,2]
[420637445,1776393038986,-509.74146824,8.219e-05,2]
[420637446,1776393038998,-507.98703537,8.219e-05,2]
[420637447,1776393039008,-500.0,8.219e-05,2]
[420637448,1776393039018,-502.86541701,8.219e-05,2]
[420637449,1776393039028,-503.01680103,8.219e-05,2]
[420637450,1776393039039,-508.13491078,8.219e-05,2]
[420637451,1776393039049,-505.1760511,8.219e-05,2]
[420637452,1776393039059,-602.49,8.219e-05,2]
[420637453,1776393039070,-506.83787245,8.219e-05,2]
[420637454,1776393039080,-1842.63,8.219e-05,2]
[420637455,1776393039089,-501.63521378,8.219e-05,2]
[420637456,1776393039099,-502.72868044,8.219e-05,2]
[420637457,1776393039109,-504.64248581,8.219e-05,2]
[420637458,1776393039119,-505.81490256,8.219e-05,2]
[420637459,1776393039128,-1470.15,8.219e-05,2]
[420637460,1776393039138,-507.13187047,8.219e-05,2]
[420637461,1776393039147,-220.33114692,8.219e-05,2]
[420637462,1776393039159,-1338.17,8.219e-05,2]
[420637463,1776393039170,-500.0,8.219e-05,2]
[420637464,1776393039180,-500.0,8.219e-05,2]
[420637465,1776393039191,-508.25017663,8.219e-05,2]
[420637466,1776393039201,-504.31914416,8.219e-05,2]
[420637467,1776393039211,-507.24342906,8.219e-05,2]
[420637468,1776393039221,-500.0,8.219e-05,2]
[420637469,1776393039232,-505.34271857,8.219e-05,2]
[420637470,1776393039242,-505.86322209,8.219e-05,2]
[420637471,1776393039253,-502.64551477,8.219e-05,2]
[420637472,1776393039263,-503.74084914,8.219e-05,2]
[420637473,1776393039273,-501.88636402,8.219e-05,2]
[420637474,1776393039284,-500.0,8.219e-05,2]
[420637475,1776393039296,-502.27000055,8.219e-05,2]
[420637476,1776393039307,-500.32576799,8.219e-05,2]
[420637477,1776393039319,-501.74428063,8.219e-05,2]
[420637478,1776393039330,-506.06120775,8.219e-05,2]
[420637479,1776393039339,-506.05495259,8.219e-05,2]
[420637480,1776393039350,-509.95577625,8.219e-05,2]
[420637481,1776393039360,-510.56604933,8.219e-05,2]
[420637482,1776393039370,-500.0,8.219e-05,2]
[420637483,1776393039380,-506.62130986,8.219e-05,2]
[420637484,1776393039390,-503.52173017,8.219e-05,2]
[420637485,1776393039399,-506.96706219,8.219e-05,2]
[420637486,1776393039410,-504.19730114,8.219e-05,2]
[420637487,1776393039419,-500.0,8.219e-05,2]
[420637488,1776393039429,-500.0,8.219e-05,2]
[420637489,1776393039439,-519.28498321,8.219e-05,2]
[420637490,1776393039449,-624.49174737,8.219e-05,2]
[420637491,1776393039459,-502.03984222,8.219e-05,2]
[420637492,1776393039468,-507.7,8.219e-05,2]
[420637493,1776393039478,-500.92213643,8.219e-05,2]
[420637494,1776393039488,-500.0,8.219e-05,2]
[420637495,1776393039498,-504.01322409,8.219e-05,2]
[420637496,1776393039508,-1324.56,8.219e-05,2]
[420637497,1776393039518,-502.81016926,8.219e-05,2]
[420637498,1776393039528,-620.52482344,8.219e-05,2]
[420637499,1776393039538,-501.71033356,8.219e-05,2]
[420637500,1776393039549,-500.89742285,8.219e-05,2]
[420637501,1776393039559,-512.69398746,8.219e-05,2]
[420637502,1776393039569,-501.04363192,8.219e-05,2]
[420637503,1776393039579,-503.52667688,8.219e-05,2]
[420637504,1776393039588,-502.94662396,8.219e-05,2]
[420637505,1776393039598,-582.16234263,8.219e-05,2]
[420637506,1776393039608,-500.50030092,8.219e-05,2]
[420637507,1776393039618,-505.08967793,8.219e-05,2]